bitfinex-derivatives/quotes_BTCF0:USTF0_20251130
["timestamp","ask_amount","ask_price","bid_price","bid_amount"]
[1764544315933,0.4438597,90991.0,90990.0,0.04263481]
[1764544316732,0.3608,91000.0,90999.0,0.04247]
[1764544317335,0.40383481,91009.0,91008.0,0.04247]
[1764544318129,0.40383481,91009.0,91008.0,0.0564]
[1764544318130,0.36096481,91009.0,91008.0,0.0564]
[1764544318321,0.00016481,91009.0,91008.0,0.0564]
[1764544318524,0.00016481,91009.0,91008.0,0.4172]
[1764544319331,0.00016481,91009.0,91008.0,0.51579418]
[1764544319525,0.00016481,91009.0,91008.0,0.4182]
[1764544320528,0.02145481,91009.0,91008.0,0.4182]
[1764544321423,0.02145481,91009.0,91008.0,0.4212]
[1764544321623,0.04303481,91009.0,91008.0,0.4212]
[1764544322030,0.00016481,91009.0,91008.0,0.4212]
[1764544322229,0.02129,91015.0,91014.0,0.0564]
[1764544322631,0.40367,91030.0,91029.0,0.04247]
[1764544323130,0.83367,91030.0,91029.0,0.04247]
[1764544323328,0.04287,91021.0,91020.0,0.22540481]
[1764544323538,0.0538561,91021.0,91020.0,0.21599481]
[1764544324843,0.0668761,91021.0,91020.0,0.00016481]
[1764544325328,0.0668761,91021.0,91020.0,0.04263481]
[1764544325533,0.0668761,91021.0,91020.0,0.02139481]
[1764544325930,0.4968761,91021.0,91020.0,0.00016481]
[1764544327032,0.97676772,91021.0,91020.0,0.00016481]
[1764544327238,0.97676772,91021.0,91008.0,0.3608]
[1764544327541,0.0538607,90983.0,90982.0,0.20787378]
[1764544327837,0.0538607,90983.0,90982.0,0.04247]
[1764544328632,0.0538607,90983.0,90982.0,0.04347]
[1764544330738,0.0538607,90983.0,90982.0,0.04247]
[1764544332142,0.42784441,90992.0,90991.0,0.04247]
[1764544332940,0.42784441,90992.0,90991.0,0.02123]
[1764544333148,0.0538607,90983.0,90982.0,0.04247]
[1764544333938,0.0538607,90983.0,90982.0,0.02123]
[1764544334745,0.0538607,90983.0,90982.0,0.04269]
[1764544335143,0.0538607,90983.0,90982.0,0.02123]
[1764544335536,0.0538607,90983.0,90982.0,0.04269]
[1764544336739,0.04287,90983.0,90982.0,0.0536808]
[1764544337051,0.0574698,90990.0,90989.0,0.04414]
[1764544337346,0.5074698,90990.0,90989.0,0.04414]
[1764544337646,0.5074698,90990.0,90989.0,0.02268]
[1764544337844,0.04648,90980.0,90979.0,0.41847]
[1764544339144,0.057471,90980.0,90979.0,0.41847]
[1764544339338,0.057471,90980.0,90979.0,0.40494]
[1764544340241,0.04648,90980.0,90979.0,0.40494]
[1764544342846,0.04648,90980.0,90978.0,0.17336]
[1764544342847,0.0711212,90979.0,90978.0,0.17336]
[1764544343152,0.4911212,90979.0,90978.0,0.17336]
[1764544346148,0.4911212,90979.0,90978.0,0.19588]
[1764544346350,0.4911212,90979.0,90978.0,0.02252]
[1764544346854,0.0574712,90979.0,90978.0,0.04546]
[1764544347055,0.04648,90979.0,90978.0,0.04546]
[1764544347750,0.04648,90979.0,90978.0,0.0558]
[1764544347955,0.04452,90989.0,90988.0,0.04546]
[1764544348346,0.41452,90989.0,90988.0,0.04546]
[1764544350354,0.04452,90989.0,90988.0,0.04546]
[1764544356151,0.02227,90989.0,90988.0,0.04546]
[1764544356347,0.04452,90989.0,90988.0,0.04546]
[1764544363258,0.04452,90989.0,90988.0,0.0564501]
[1764544363461,0.00016481,90992.0,90991.0,0.0564497]
[1764544363962,0.3608,91021.0,91002.0,0.0697684]
[1764544364159,0.40514,91003.0,91002.0,0.0697684]
[1764544365461,0.04434,90997.0,90996.0,0.40698]
[1764544365956,0.42434,90997.0,90996.0,0.04618]
[1764544366163,0.04434,90995.0,90994.0,0.1734]
[1764544366360,0.42434,90995.0,90994.0,0.1734]
[1764544367467,0.0553293,90994.0,90993.0,0.00016481]
[1764544367759,0.5053293,90994.0,90993.0,0.00016481]
[1764544372764,0.1453293,90994.0,90993.0,0.04634481]
[1764544373071,0.4753293,90994.0,90993.0,0.00016481]
[1764544376766,0.4753293,90994.0,90993.0,0.04634481]
[1764544377062,0.1753293,90994.0,90993.0,0.05994481]
[1764544377653,0.1753293,90994.0,90993.0,0.04634481]
[1764544380566,0.4353293,90994.0,90993.0,0.04634481]
[1764544380966,0.0553293,90994.0,90993.0,0.04634481]
[1764544382167,0.02229,90994.0,90993.0,0.05994481]
[1764544382766,0.04434,90994.0,90993.0,0.05994481]
[1764544382962,0.02229,90999.0,90995.0,0.04618]
[1764544383275,0.416128,91005.0,91004.0,0.04618]
[1764544383576,0.04450481,91012.0,91011.0,0.0571673]
[1764544384870,0.04450481,91012.0,91011.0,0.0601673]
[1764544385275,0.04450481,91012.0,91011.0,0.04718]
[1764544386176,0.04450481,91012.0,91011.0,0.04618]
[1764544390071,0.00016481,91012.0,91011.0,0.04618]
[1764544390976,0.40514,91035.0,91034.0,0.04618]
[1764544391271,0.04434,91035.0,91034.0,0.04618]
[1764544392076,0.04434,91035.0,91034.0,0.04818]
[1764544392272,0.04434,91035.0,91034.0,0.002]
[1764544392478,0.04434,91035.0,91034.0,0.04918]
[1764544395067,0.41757,91035.0,91034.0,0.003]
[1764544396874,0.41757,91035.0,91034.0,0.02465]
[1764544397079,0.08434,91035.0,91034.0,0.04794]
[1764544397377,0.04434,91035.0,91034.0,0.04794]
[1764544405575,0.00010842,91044.0,91043.0,0.0574034]
[1764544405779,0.40675,91065.0,91064.0,0.04642]
[1764544406590,0.4177308,91065.0,91064.0,0.06221774]
[1764544407089,0.4177308,91065.0,91064.0,0.01579774]
[1764544407280,0.04595,91056.0,91055.0,0.0465847]
[1764544407685,0.04595,91056.0,91055.0,0.06292057]
[1764544409184,0.05922,91056.0,91055.0,0.01750057]
[1764544409388,0.05922,91056.0,91035.0,0.40722]
[1764544409389,0.02329,91036.0,91035.0,0.40722]
[1764544409687,0.04595,91036.0,91035.0,0.40722]
[1764544409988,0.04595,91036.0,91035.0,0.42339838]
[1764544410187,0.04595,91036.0,91035.0,0.37697838]
[1764544411188,0.04695,91036.0,91035.0,0.42339838]
[1764544412586,0.04795,91036.0,91035.0,0.42339838]
[1764544413085,0.04695,91036.0,91035.0,0.42339838]
[1764544413282,0.04895,91036.0,91035.0,0.42339838]
[1764544414074,0.04795,91036.0,91035.0,0.42339838]
[1764544414274,0.04895,91036.0,91035.0,0.42339838]
[1764544416791,0.04895,91036.0,91035.0,0.06259838]
[1764544425604,0.47895,91036.0,91035.0,0.01617838]
[1764544425794,0.04501,91027.0,91026.0,0.0440047]
[1764544425994,0.0559954,91027.0,91026.0,0.0440047]
[1764544426194,0.0559954,91027.0,91026.0,0.0597274]
[1764544426803,0.1761021,91036.0,91035.0,0.04384]
[1764544426998,0.04701,91036.0,91035.0,0.04384]
[1764544427801,0.04501,91036.0,91035.0,0.04384]
[1764544428103,0.0569943,91036.0,91035.0,0.04384]
[1764544428494,0.0619943,91036.0,91035.0,0.04384]
[1764544429410,0.0609943,91036.0,91035.0,0.04384]
[1764544429705,0.0619943,91036.0,91035.0,0.04384]
[1764544430203,0.0609943,91036.0,91035.0,0.04384]
[1764544430504,0.0619943,91036.0,91035.0,0.04384]
[1764544435717,0.0559954,91027.0,91026.0,0.0597274]
[1764544436821,0.0569954,91027.0,91026.0,0.0597274]
[1764544437023,0.4269954,91027.0,91026.0,0.0597274]
[1764544437223,0.4269954,91027.0,91026.0,0.09482809]
[1764544437417,0.4269954,91027.0,91026.0,0.0158874]
[1764544437623,0.4319954,91027.0,91026.0,0.0158874]
[1764544438818,0.4319954,91027.0,91026.0,0.0376674]
[1764544439830,0.4319954,91027.0,91026.0,0.0158874]
[1764544441223,0.55072935,91027.0,91026.0,0.0158874]
[1764544443530,0.55072935,91027.0,91026.0,0.0376674]
[1764544443828,0.55072935,91027.0,91026.0,0.0597274]
[1764544446123,0.62072935,91027.0,91026.0,0.0732274]
[1764544446622,0.62072935,91027.0,91026.0,0.0597274]
[1764544446819,0.27974395,91027.0,91026.0,0.0732274]
[1764544447023,0.02845,91027.0,91026.0,0.0732274]
[1764544447225,0.006,91027.0,91026.0,0.0732274]
[1764544447424,0.05101,91027.0,91026.0,0.0732274]
[1764544449534,0.006,91027.0,91026.0,0.0732274]
[1764544449726,0.02845,91027.0,91026.0,0.0732274]
[1764544449926,0.05101,91027.0,91026.0,0.0732274]
[1764544450927,0.05101,91027.0,91026.0,0.0597274]
[1764544451926,0.48101,91027.0,91026.0,0.0158874]
[1764544455437,0.48101,91027.0,91026.0,0.0386074]
[1764544457632,0.15101,91027.0,91026.0,0.0613974]
[1764544465447,0.006,91027.0,91026.0,0.0723829]
[1764544468848,0.05047,91027.0,91026.0,0.0613974]
[1764544469648,0.05047,91027.0,91026.0,0.2347174]
[1764544471848,0.006,91027.0,91026.0,0.23689427]
[1764544472650,0.05047,91027.0,91026.0,0.23689427]
[1764544474545,0.0614554,91027.0,91026.0,0.23689427]
[1764544479960,0.4914554,91027.0,91026.0,0.23689427]
[1764544480564,0.4914554,91027.0,91026.0,0.19138427]
[1764544481161,0.4914554,91027.0,91026.0,0.21321427]
[1764544482458,0.4914554,91027.0,91026.0,0.19138427]
[1764544482959,0.4914554,91027.0,91026.0,0.21321427]
[1764544483152,0.4914554,91027.0,91026.0,0.23449427]
[1764544485963,0.4914554,91027.0,91026.0,0.23452818]
[1764544486769,0.4914554,91027.0,91026.0,0.21324818]
[1764544486969,0.4914554,91027.0,91026.0,0.19141818]
[1764544488871,0.4914554,91027.0,91026.0,0.04141818]
[1764544494373,0.4914554,91027.0,91026.0,0.04145293]
[1764544499769,0.4914554,91027.0,91026.0,0.06250293]
[1764544503482,0.4614554,91027.0,91026.0,0.06250293]
[1764544504170,0.4614554,91027.0,91026.0,0.06253861]
[1764544504375,0.4614554,91027.0,91026.0,1e-08]
[1764544504580,0.05175,91010.0,91009.0,0.07899324]
[1764544504783,0.04436,91007.0,91003.0,0.07899324]
[1764544504982,0.47436,91007.0,90998.0,0.07899324]
[1764544505169,0.5896479,91007.0,90996.0,0.07899324]
[1764544505376,0.5896479,91007.0,90997.0,0.0001648]
[1764544505979,0.5452879,91007.0,91006.0,2.154e-05]
[1764544506482,0.5492879,91007.0,91006.0,2.154e-05]
[1764544506878,0.5452879,91007.0,91006.0,2.154e-05]
[1764544507079,0.5896479,91007.0,91006.0,0.00202154]
[1764544507281,0.5896479,91007.0,91006.0,0.00302154]
[1764544508488,0.5896479,91007.0,91006.0,0.00602154]
[1764544508682,0.5896479,91007.0,91006.0,0.00502154]
[1764544508984,0.5896479,91007.0,91006.0,0.04539154]
[1764544508985,0.02331,91007.0,91006.0,0.04539154]
[1764544509181,0.1293102,91016.0,91006.0,0.04539154]
[1764544509182,0.0555115,91016.0,91015.0,0.04437]
[1764544509486,0.4555115,91016.0,91015.0,0.04437]
[1764544510690,0.4555115,91016.0,91008.0,0.01348]
[1764544510691,0.0553478,91007.0,91006.0,0.04839154]
[1764544511588,0.0553478,91007.0,91006.0,0.04439154]
[1764544511981,0.0553478,91007.0,91006.0,0.04539154]
[1764544512186,0.0342978,91007.0,91006.0,0.04939154]
[1764544512387,0.0553478,91007.0,91006.0,0.04939154]
[1764544512579,0.4353478,91007.0,91006.0,0.04939154]
[1764544512780,0.4353478,91007.0,91006.0,0.00502154]
[1764544513083,0.4353478,91007.0,91006.0,0.04939154]
[1764544514290,0.4353478,91007.0,91006.0,0.02834154]
[1764544514790,0.4353478,91007.0,91006.0,0.00502154]
[1764544515292,0.0550989,90998.0,90989.0,0.07899324]
[1764544515481,0.8458989,90998.0,90987.0,0.07899324]
[1764544515877,0.8458989,90998.0,90986.0,0.07899324]
[1764544516285,0.8458989,90998.0,90985.0,0.07899324]
[1764544516483,0.83491,90998.0,90997.0,0.05866959]
[1764544517491,0.83491,90998.0,90997.0,0.03577959]
[1764544517688,0.83491,90998.0,90997.0,0.0422859]
[1764544517892,0.83491,90998.0,90997.0,0.05935467]
[1764544518092,0.83491,90998.0,90997.0,0.06035467]
[1764544518290,0.83491,90998.0,90997.0,0.03919467]
[1764544520593,0.83491,90998.0,90997.0,0.03419467]
[1764544520797,0.04411,90970.0,90969.0,0.10015324]
[1764544521004,0.04411,90970.0,90969.0,0.04405]
[1764544521298,0.04411,90970.0,90969.0,0.02116]
[1764544521495,0.04411,90970.0,90969.0,0.03567368]
[1764544521893,0.04711,90970.0,90969.0,0.05856368]
[1764544522288,0.04411,90970.0,90969.0,0.05856368]
[1764544522491,0.05011,90970.0,90969.0,0.05856368]
[1764544522692,0.05111,90970.0,90969.0,0.05856368]
[1764544522888,0.007,90970.0,90969.0,0.05856368]
[1764544523191,0.02983,90970.0,90969.0,0.05856368]
[1764544523497,0.05111,90970.0,90969.0,0.05856368]
[1764544523997,0.05311,90970.0,90969.0,0.05856368]
[1764544524997,0.04511,90970.0,90969.0,0.05856368]
[1764544525300,0.05311,90970.0,90969.0,0.05856368]
[1764544525797,0.05211,90970.0,90969.0,0.05856368]
[1764544526000,0.05311,90970.0,90969.0,0.05856368]
[1764544526698,0.0641022,90970.0,90969.0,0.05856368]
[1764544527390,0.05311,90970.0,90969.0,0.05856368]
[1764544527900,0.44311,90970.0,90969.0,0.01451368]
[1764544528195,0.04411,90968.0,90966.0,0.00027483]
[1764544528392,0.41411,90968.0,90966.0,0.00027483]
[1764544528788,0.41411,90968.0,90967.0,0.05835929]
[1764544528996,0.04411,90968.0,90967.0,0.05835929]
[1764544529601,0.43411,90968.0,90967.0,0.05835929]
[1764544530102,0.19211,90968.0,90967.0,0.05835929]
[1764544530504,0.42211,90968.0,90967.0,0.01430929]
[1764544531001,0.41511,90968.0,90967.0,0.03748929]
[1764544531301,0.11411,90968.0,90967.0,0.03748929]
[1764544531605,0.11411,90968.0,90967.0,0.05859929]
[1764544533102,0.48411,90968.0,90967.0,0.01430929]
[1764544533303,0.60024751,90968.0,90967.0,0.01430929]
[1764544533504,0.60024751,90968.0,90967.0,0.03748929]
[1764544533705,0.48411,90968.0,90967.0,0.05859929]
[1764544534101,0.48411,90968.0,90967.0,0.01430929]
[1764544534997,0.60578485,90968.0,90967.0,0.00013019]
[1764544536794,0.60578485,90968.0,90960.0,0.00016489]
[1764544536795,0.0546033,90961.0,90960.0,0.00016489]
[1764544537105,0.04361,90944.0,90943.0,0.21769]
[1764544537696,0.0546044,90952.0,90951.0,0.05781]
[1764544538001,0.0546044,90952.0,90951.0,0.07222073]
[1764544538002,0.16470551,90952.0,90951.0,0.07222073]
[1764544538502,0.47470551,90952.0,90951.0,0.01441073]
[1764544538806,0.0546054,90944.0,90943.0,0.21769]
[1764544539003,0.2846054,90944.0,90943.0,0.23181137]
[1764544540299,0.3007254,90944.0,90943.0,0.18752137]
[1764544540498,0.3007254,90944.0,90943.0,0.01412137]
[1764544540699,0.04361,90943.0,90942.0,0.00016489]
[1764544540899,0.43361,90943.0,90942.0,0.00016489]
[1764544541205,0.43361,90943.0,90942.0,0.04445489]
[1764544541206,0.19361,90943.0,90942.0,0.04445489]
[1764544541798,0.04361,90943.0,90942.0,0.05891947]
[1764544541994,0.42361,90943.0,90942.0,0.03780947]
[1764544542193,0.19361,90943.0,90942.0,0.03780947]
[1764544542608,0.19361,90943.0,90942.0,0.05891947]
[1764544542801,0.19661,90943.0,90942.0,0.05891947]
[1764544543818,0.43661,90943.0,90942.0,0.01462947]
[1764544545608,0.79741,90943.0,90942.0,0.00016489]
[1764544545810,0.0537374,90927.0,90924.0,0.3608]
[1764544546100,0.5037374,90927.0,90926.0,0.03679149]
[1764544546308,0.50384651,90927.0,90926.0,0.04516495]
[1764544546608,0.50384651,90927.0,90926.0,0.00027495]
[1764544546802,0.50384651,90927.0,90926.0,0.04516495]
[1764544547410,0.50384651,90927.0,90926.0,0.0591566]
[1764544547807,0.18284911,90927.0,90926.0,0.0591566]
[1764544548005,0.00010911,90927.0,90926.0,0.0591566]
[1764544549204,0.00310911,90927.0,90926.0,0.2326366]
[1764544558503,0.00016489,90936.0,90935.0,0.04489]
[1764544558820,0.02128489,90936.0,90935.0,0.40569]
[1764544559113,0.04290489,90936.0,90935.0,0.40569]
[1764544559314,0.0537374,90927.0,90926.0,0.0591566]
[1764544560014,0.0109974,90927.0,90926.0,0.0591566]
[1764544560604,0.0537374,90927.0,90926.0,0.0591566]
[1764544561506,0.4237374,90927.0,90926.0,0.0142666]
[1764544561819,0.0537385,90918.0,90917.0,0.02222489]
[1764544562018,0.2637385,90918.0,90917.0,0.04505489]
[1764544562317,0.2637385,90918.0,90917.0,0.06037101]
[1764544564013,0.1718854,90927.0,90926.0,0.04489]
[1764544564213,0.04274,90927.0,90926.0,0.04489]
[1764544565522,0.04474,90927.0,90926.0,0.04489]
[1764544565921,0.002,90927.0,90926.0,0.04489]
[1764544569722,0.00016489,90936.0,90935.0,0.0558865]
[1764544569928,0.00016489,90936.0,90935.0,0.4166865]
[1764544571421,0.00116489,90936.0,90935.0,0.4166865]
[1764544571617,0.00416489,90936.0,90935.0,0.4166865]
[1764544574422,0.02184,90956.0,90955.0,0.0559641]
[1764544574924,0.02184,90956.0,90955.0,0.04497]
[1764544575424,0.0109939,90957.0,90956.0,0.0559639]
[1764544575612,0.00016498,90965.0,90963.0,0.04497]
[1764544575817,0.00016498,90965.0,90963.0,0.0559631]
[1764544577021,0.00016498,90965.0,90964.0,0.04497]
[1764544577221,0.02200498,90965.0,90964.0,0.04497]
[1764544577422,0.00016498,90965.0,90964.0,0.04497]
[1764544578222,0.00016498,90965.0,90964.0,0.04897]
[1764544578621,0.00016498,90965.0,90964.0,0.04997]
[1764544578921,0.38264,90976.0,90975.0,0.04497]
[1764544579126,0.4164506,90984.0,90983.0,0.04497]
[1764544579526,0.5312678,90984.0,90983.0,0.04497]
[1764544579828,0.0556514,90977.0,90976.0,0.04497]
[1764544580626,0.0556519,90973.0,90972.0,0.3608]
[1764544580923,0.4856519,90973.0,90972.0,0.3608]
[1764544581715,0.2556519,90973.0,90972.0,0.3608]
[1764544581915,0.2606519,90973.0,90972.0,0.38328]
[1764544582112,0.2616519,90973.0,90972.0,0.38328]
[1764544582624,0.2616519,90973.0,90967.0,0.00016489]
[1764544582625,0.0622525,90968.0,90967.0,0.00016489]
[1764544582816,0.4522525,90968.0,90967.0,0.00016489]
[1764544583017,0.2322525,90968.0,90967.0,0.00016489]
[1764544583924,0.2372525,90968.0,90967.0,0.00016489]
[1764544584128,0.2382525,90968.0,90967.0,0.00016489]
[1764544584724,0.2372525,90968.0,90967.0,0.00016489]
[1764544584924,0.4232525,90968.0,90967.0,0.00016489]
[1764544585228,0.4292525,90968.0,90967.0,0.00016489]
[1764544586429,0.1892525,90968.0,90967.0,0.00016489]
[1764544587123,0.1832525,90968.0,90967.0,0.00016489]
[1764544587324,0.1892525,90968.0,90967.0,0.00016489]
[1764544587530,0.1882525,90968.0,90967.0,0.00016489]
[1764544587732,0.5192525,90968.0,90967.0,0.00016489]
[1764544588228,0.4892525,90968.0,90967.0,0.00016489]
[1764544588935,0.4892525,90968.0,90967.0,0.04513489]
[1764544589143,0.1182525,90968.0,90967.0,0.04513489]
[1764544589435,0.0626525,90968.0,90967.0,0.04513489]
[1764544589731,0.05166,90968.0,90967.0,0.04513489]
[1764544591341,0.05166,90968.0,90967.0,0.00016489]
[1764544591841,0.05166,90968.0,90967.0,0.04564489]
[1764544592832,0.05166,90968.0,90967.0,0.02304489]
[1764544593343,0.05166,90968.0,90967.0,0.04564489]
[1764544594736,0.05166,90968.0,90967.0,0.02304489]
[1764544597452,0.05166,90968.0,90967.0,0.04564489]
[1764544600755,0.007,90968.0,90967.0,0.04564489]
[1764544600949,0.007,90968.0,90967.0,0.48533629]
[1764544601250,0.007,90968.0,90967.0,0.40644489]
[1764544601460,0.05254,90968.0,90967.0,0.40644489]
[1764544601755,0.03023,90968.0,90967.0,0.40644489]
[1764544601950,0.007,90968.0,90967.0,0.40644489]
[1764544606960,0.02965,90968.0,90967.0,0.40644489]
[1764544607761,0.007,90968.0,90967.0,0.57984489]
[1764544612959,0.0620925,90968.0,90967.0,0.57984489]
[1764544613161,0.0179925,90968.0,90967.0,0.57984489]
[1764544613851,0.007,90968.0,90967.0,0.57984489]
[1764544617261,0.02965,90968.0,90967.0,0.57984489]
[1764544617961,0.0511,90968.0,90967.0,0.40644489]
[1764544618160,0.4311,90968.0,90967.0,0.44002011]
[1764544618362,0.4311,90968.0,90967.0,0.53436489]
[1764544618559,0.4311,90968.0,90967.0,0.57956489]
[1764544618765,0.0511,90968.0,90967.0,0.57956489]
[1764544621262,0.007,90968.0,90967.0,0.57956489]
[1764544621468,0.3944405,90985.0,90984.0,0.0452]
[1764544621770,0.3608,90993.0,90985.0,0.0109904]
[1764544622064,0.3608,90993.0,90985.0,0.0561904]
[1764544622558,0.3717895,90993.0,90985.0,0.0561904]
[1764544622865,0.0109899,90990.0,90985.0,0.0561904]
[1764544623161,0.04426489,90986.0,90985.0,0.0452]
[1764544623362,0.04626489,90986.0,90985.0,0.0452]
[1764544623562,0.04626489,90986.0,90985.0,0.0561904]
[1764544623764,0.02481489,90986.0,90985.0,0.0561904]
[1764544624562,0.00216489,90986.0,90985.0,0.0561904]
[1764544625467,0.00016489,90986.0,90985.0,0.0561904]
[1764544625767,0.0550887,91000.0,90999.0,0.0452]
[1764544626666,0.0550887,91000.0,90999.0,0.06156603]
[1764544627170,0.0336383,91004.0,91003.0,0.0561883]
[1764544627359,0.0109878,91008.0,91005.0,0.056188]
[1764544627969,0.0109878,91008.0,91005.0,0.0452]
[1764544628472,0.02292471,91006.0,91005.0,0.0452]
[1764544628769,0.02292471,91006.0,91005.0,0.0542]
[1764544629571,0.04437471,91006.0,91005.0,0.0542]
[1764544630263,0.00027471,91006.0,91005.0,0.065188]
[1764544632674,0.00027471,91006.0,91005.0,0.0542]
[1764544633172,0.02292471,91006.0,91005.0,0.0542]
[1764544634075,0.04437471,91006.0,91005.0,0.009]
[1764544634265,0.604526,91006.0,91005.0,0.009]
[1764544645683,0.04241,90991.0,90990.0,0.04495489]
[1764544645980,0.46241,90991.0,90990.0,0.04495489]
[1764544646181,0.46241,90991.0,90990.0,0.06089526]
[1764544646781,0.46341,90991.0,90990.0,0.06089526]
[1764544647082,0.4753997,90991.0,90990.0,0.06089526]
[1764544655787,0.59111996,90991.0,90990.0,0.01610526]
[1764544660791,0.17111996,90991.0,90990.0,0.07433526]
[1764544661085,0.0553997,90991.0,90990.0,0.07433526]
[1764544661286,0.4953997,90991.0,90990.0,0.01610526]
[1764544663083,0.61738743,90991.0,90990.0,0.01610526]
[1764544663983,0.0566712,90979.0,90978.0,0.07894341]
[1764544664185,0.4566712,90979.0,90978.0,0.02266]
[1764544664782,0.05806,90978.0,90977.0,0.3608]
[1764544664977,0.49806,90978.0,90977.0,0.39938926]
[1764544666176,0.50006,90978.0,90977.0,0.39938926]
[1764544666681,0.50406,90978.0,90977.0,0.39938926]
[1764544667381,0.50406,90978.0,90977.0,0.42061926]
[1764544667581,0.50506,90978.0,90977.0,0.42061926]
[1764544668486,0.50506,90978.0,90977.0,0.05981926]
[1764544668681,0.50506,90978.0,90977.0,0.01592926]
[1764544668989,0.04568,90974.0,90973.0,0.40469]
[1764544669190,0.4366718,90974.0,90973.0,0.40469]
[1764544670587,0.4376718,90974.0,90973.0,0.40469]
[1764544671388,0.4376718,90974.0,90973.0,0.42102736]
[1764544671695,0.4436718,90974.0,90973.0,0.42102736]
[1764544671994,0.4376718,90974.0,90973.0,0.42102736]
[1764544672193,0.4436718,90974.0,90973.0,0.42102736]
[1764544674490,0.4436718,90974.0,90973.0,0.06022736]
[1764544678097,0.007,90974.0,90973.0,0.06022736]
[1764544678794,0.007,90974.0,90973.0,0.13917077]
[1764544679192,0.007,90974.0,90973.0,0.06022736]
[1764544679793,0.0109911,90980.0,90975.0,0.00909]
[1764544679993,0.0109911,90980.0,90979.0,0.40469]
[1764544680189,0.0109911,90980.0,90979.0,0.4156812]
[1764544680493,0.37195509,90987.0,90986.0,0.04389]
[1764544681089,0.39490509,90987.0,90986.0,0.04389]
[1764544681690,0.41763509,90987.0,90986.0,0.04389]
[1764544681890,0.05683509,90987.0,90986.0,0.04689]
[1764544682296,0.04568,90979.0,90978.0,0.07901163]
[1764544682604,0.04568,90979.0,90965.0,0.13648549]
[1764544682605,0.04568,90969.0,90965.0,0.01657779]
[1764544682797,0.79648,90969.0,90965.0,0.01657779]
[1764544683004,0.0566732,90962.0,90961.0,0.35020268]
[1764544683192,0.4466732,90962.0,90961.0,0.35020268]
[1764544683399,0.57092086,90962.0,90961.0,0.36678386]
[1764544683895,0.0566741,90955.0,90954.0,0.17336]
[1764544684100,0.5066741,90955.0,90954.0,0.17336]
[1764544684400,0.056675,90947.0,90946.0,0.40469]
[1764544684705,0.04568,90946.0,90945.0,0.00016489]
[1764544684904,0.47568,90946.0,90945.0,0.00016489]
[1764544685103,0.59762079,90946.0,90945.0,0.00016489]
[1764544685290,0.59762079,90946.0,90945.0,0.01723999]
[1764544685494,0.04568,90929.0,90928.0,0.21725]
[1764544686805,0.41764109,90938.0,90937.0,0.04389]
[1764544687104,0.77764109,90938.0,90937.0,0.04389]
[1764544688002,0.77764109,90938.0,90937.0,0.06076982]
[1764544688405,0.77764109,90938.0,90937.0,0.03953982]
[1764544688602,0.77864109,90938.0,90937.0,0.03953982]
[1764544689000,0.78164109,90938.0,90937.0,0.03953982]
[1764544690500,0.72496489,90938.0,90937.0,0.07337982]
[1764544690809,0.41064489,90938.0,90937.0,0.07337982]
[1764544691020,0.41064489,90938.0,90937.0,0.06076982]
[1764544691598,0.81064489,90938.0,90937.0,0.06076982]
[1764544692905,0.81064489,90938.0,90937.0,0.07337982]
[1764544693604,0.00416489,90938.0,90937.0,0.07337982]
[1764544696006,0.01516099,90938.0,90937.0,0.07337982]
[1764544696205,0.03849099,90938.0,90937.0,0.07337982]
[1764544696602,0.00416489,90938.0,90937.0,0.07337982]
[1764544698505,0.04947489,90938.0,90937.0,0.06028982]
[1764544698711,0.04947489,90938.0,90937.0,0.07379982]
[1764544699906,0.00416489,90938.0,90937.0,0.07379982]
[1764544701204,4.89e-06,90938.0,90937.0,0.07379982]
[1764544705608,0.00016489,90947.0,90946.0,0.0554652]
[1764544705804,0.0109928,90966.0,90951.0,0.01318]
[1764544706019,0.3608,90971.0,90970.0,0.04569]
[1764544706416,0.02125,90977.0,90976.0,0.04569]
[1764544706721,0.0551809,90982.0,90981.0,0.04569]
[1764544708018,0.0581809,90982.0,90981.0,0.04569]
[1764544708319,0.4491809,90982.0,90981.0,0.02288]
[1764544710024,0.4451809,90982.0,90981.0,0.02288]
[1764544710226,0.4491809,90982.0,90981.0,0.02288]
[1764544710723,0.04419,90973.0,90972.0,0.01334489]
[1764544710920,0.04419,90973.0,90972.0,0.05903489]
[1764544712926,0.0551819,90973.0,90972.0,0.05903489]
[1764544713322,0.0561819,90973.0,90972.0,0.05903489]
[1764544714124,0.0551819,90973.0,90972.0,0.05903489]
[1764544714327,0.0561819,90973.0,90972.0,0.05903489]
[1764544715824,0.001,90973.0,90972.0,0.05903489]
[1764544718127,0.0551802,90988.0,90987.0,0.04569]
[1764544718424,0.36096489,90991.0,90990.0,0.04569]
[1764544718626,0.40515489,90991.0,90990.0,0.04569]
[1764544720029,0.79515489,90991.0,90990.0,0.05269]
[1764544720231,0.79515489,90991.0,90990.0,0.008]
[1764544721231,0.79515489,90991.0,90990.0,0.03088]
[1764544721617,0.44515489,90991.0,90990.0,0.05369]
[1764544722241,0.40515489,90991.0,90990.0,0.05369]
[1764544724624,0.40515489,90991.0,90990.0,0.03088]
[1764544725323,0.40515489,90991.0,90990.0,0.008]
[1764544725324,0.79515489,90991.0,90990.0,0.008]
[1764544727537,0.79515489,90991.0,90990.0,0.02957]
[1764544728149,0.79515489,90991.0,90990.0,0.008]
[1764544730143,0.79515489,90991.0,90990.0,0.02957]
[1764544730542,0.79515489,90991.0,90990.0,0.008]
[1764544731635,0.91740048,90991.0,90990.0,0.00783022]
[1764544731840,0.04427,90980.0,90979.0,0.3608]
[1764544732244,0.055261,90980.0,90979.0,0.3608]
[1764544732742,0.055261,90980.0,90979.0,0.40437]
[1764544733142,0.058261,90980.0,90979.0,0.40437]
[1764544733552,0.058261,90980.0,90979.0,0.3608]
[1764544734050,0.059261,90980.0,90979.0,0.3608]
[1764544734453,0.059261,90980.0,90972.0,0.00016489]
[1764544734454,0.0552619,90973.0,90972.0,0.00016489]
[1764544734646,0.5052619,90973.0,90972.0,0.00016489]
[1764544735540,0.5052619,90973.0,90972.0,0.02173489]
[1764544735753,0.5092619,90973.0,90972.0,0.02173489]
[1764544736451,0.5092619,90973.0,90972.0,0.00016489]
[1764544736747,0.6318445,90973.0,90972.0,0.00016489]
[1764544736943,0.6358445,90973.0,90972.0,0.00016489]
[1764544737144,0.6348445,90973.0,90972.0,0.00016489]
[1764544737352,0.6358445,90973.0,90972.0,0.00016489]
[1764544738251,0.6378445,90973.0,90972.0,0.00016489]
[1764544738845,0.0552631,90963.0,90956.0,0.07877707]
[1764544739036,0.4452631,90963.0,90955.0,0.07877707]